[Event "Titled Tuesday Blitz November 29 Early 2022"]
[White "Manukyan, Sargis A."]
[Black "Sailer, Mike"]
[WhiteFideId "13303970"]
[BlackFideId "2012901"]
[WhiteElo "2187"]
[BlackElo "2109"]
[Result "0-1"]
[Round "01"]
[TimeControl "180+1"]
[Date "2022.11.30"]
[WhiteClock "0:00:15"]
[BlackClock "0:00:09"]

1. d4 {[%clk 0:02:57]}  d5 {[%clk 0:03:00]} 2. e3 {[%clk 0:02:56]}  Bf5 {[%clk 0:03:00]} 3. Nf3 {[%clk 0:02:57]}  e6 {[%clk 0:03:01]} 4. Be2 {[%clk 0:02:57]}  Nf6 {[%clk 0:03:01]} 5. O-O {[%clk 0:02:58]}  Be7 {[%clk 0:03:01]} 6. b3 {[%clk 0:02:58]}  O-O {[%clk 0:03:01]} 7. Bb2 {[%clk 0:02:58]}  c5 {[%clk 0:03:01]} 8. Nbd2 {[%clk 0:02:49]}  Nc6 {[%clk 0:03:01]} 9. Ne5 {[%clk 0:02:46]}  Nxe5 {[%clk 0:02:58]} 10. dxe5 {[%clk 0:02:46]}  Ne4 {[%clk 0:02:59]} 11. f4 {[%clk 0:02:45]}  a5 {[%clk 0:02:48]} 12. Nxe4 {[%clk 0:02:44]}  Bxe4 {[%clk 0:02:48]} 13. Bd3 {[%clk 0:02:42]}  Bxd3 {[%clk 0:02:46]} 14. cxd3 {[%clk 0:02:42]}  a4 {[%clk 0:02:47]} 15. Qc2 {[%clk 0:02:36]}  b5 {[%clk 0:02:26]} 16. e4 {[%clk 0:02:35]}  dxe4 {[%clk 0:02:17]} 17. dxe4 {[%clk 0:02:35]}  Qc7 {[%clk 0:02:15]} 18. f5 {[%clk 0:02:35]}  Bg5 {[%clk 0:02:05]} 19. Rf3 {[%clk 0:02:30]}  Rfd8 {[%clk 0:02:01]} 20. Raf1 {[%clk 0:02:10]}  Rd2 {[%clk 0:01:50]} 21. Qb1 {[%clk 0:02:03]}  axb3 {[%clk 0:01:41]} 22. axb3 {[%clk 0:02:03]}  c4 {[%clk 0:01:37]} 23. bxc4 {[%clk 0:02:02]}  Qxc4 {[%clk 0:01:31]} 24. Bc1 {[%clk 0:01:56]}  Qd4+ {[%clk 0:01:17]} 25. Kh1 {[%clk 0:01:56]}  Rd1 {[%clk 0:01:15]} 26. fxe6 {[%clk 0:01:52]}  fxe6 {[%clk 0:01:03]} 27. Qb3 {[%clk 0:01:40]}  Rxc1 {[%clk 0:00:52]} 28. Qxe6+ {[%clk 0:01:38]}  Kh8 {[%clk 0:00:53]} 29. Qc6 {[%clk 0:00:58]}  Rxf1+ {[%clk 0:00:48]} 30. Rxf1 {[%clk 0:00:59]}  Rd8 {[%clk 0:00:34]} 31. Qxb5 {[%clk 0:00:57]}  Qxe4 {[%clk 0:00:32]} 32. e6 {[%clk 0:00:52]}  Be7 {[%clk 0:00:29]} 33. Qb6 {[%clk 0:00:49]}  h6 {[%clk 0:00:22]} 34. h3 {[%clk 0:00:46]}  Qd5 {[%clk 0:00:21]} 35. Qa6 {[%clk 0:00:37]}  Kh7 {[%clk 0:00:20]} 36. Qb6 {[%clk 0:00:35]}  Rd6 {[%clk 0:00:20]} 37. Qb1+ {[%clk 0:00:35]}  Qd3 {[%clk 0:00:20]} 38. Qxd3+ {[%clk 0:00:33]}  Rxd3 {[%clk 0:00:20]} 39. Rf7 {[%clk 0:00:34]}  Rd1+ {[%clk 0:00:20]} 40. Kh2 {[%clk 0:00:32]}  Bd6+ {[%clk 0:00:21]} 41. g3 {[%clk 0:00:33]}  Rd2+ {[%clk 0:00:21]} 42. Kg1 {[%clk 0:00:34]}  Re2 {[%clk 0:00:22]} 43. Rd7 {[%clk 0:00:30]}  Rxe6 {[%clk 0:00:22]} 44. g4 {[%clk 0:00:30]}  Be5 {[%clk 0:00:20]} 45. Kg2 {[%clk 0:00:31]}  Rd6 {[%clk 0:00:19]} 46. Re7 {[%clk 0:00:30]}  Bf6 {[%clk 0:00:20]} 47. Ra7 {[%clk 0:00:30]}  Rd3 {[%clk 0:00:20]} 48. Rb7 {[%clk 0:00:30]}  Kg6 {[%clk 0:00:20]} 49. Rb5 {[%clk 0:00:30]}  Rc3 {[%clk 0:00:17]} 50. Ra5 {[%clk 0:00:30]}  Rb3 {[%clk 0:00:16]} 51. Rc5 {[%clk 0:00:30]}  Rb2+ {[%clk 0:00:16]} 52. Kg3 {[%clk 0:00:30]}  Be7 {[%clk 0:00:16]} 53. Rd5 {[%clk 0:00:29]}  Rb6 {[%clk 0:00:15]} 54. h4 {[%clk 0:00:29]}  Bd6+ {[%clk 0:00:15]} 55. Kg2 {[%clk 0:00:29]}  Rb2+ {[%clk 0:00:16]} 56. Kf3 {[%clk 0:00:29]}  Rb3+ {[%clk 0:00:16]} 57. Ke2 {[%clk 0:00:24]}  Be7 {[%clk 0:00:17]} 58. h5+ {[%clk 0:00:24]}  Kf7 {[%clk 0:00:17]} 59. Kf2 {[%clk 0:00:22]}  Bf6 {[%clk 0:00:16]} 60. Ra5 {[%clk 0:00:21]}  Ke6 {[%clk 0:00:17]} 61. Kg2 {[%clk 0:00:20]}  Re3 {[%clk 0:00:17]} 62. Kf2 {[%clk 0:00:20]}  Rd3 {[%clk 0:00:18]} 63. Ke2 {[%clk 0:00:20]}  Rd5 {[%clk 0:00:18]} 64. Ra4 {[%clk 0:00:20]}  Ke5 {[%clk 0:00:19]} 65. Kf3 {[%clk 0:00:20]}  Rd4 {[%clk 0:00:19]} 66. Ra5+ {[%clk 0:00:20]}  Rd5 {[%clk 0:00:20]} 67. Ra4 {[%clk 0:00:20]}  Rc5 {[%clk 0:00:19]} 68. Re4+ {[%clk 0:00:21]}  Kd5 {[%clk 0:00:20]} 69. Re2 {[%clk 0:00:22]}  Rc3+ {[%clk 0:00:20]} 70. Kf4 {[%clk 0:00:22]}  Bg5+ {[%clk 0:00:21]} 71. Kf5 {[%clk 0:00:23]}  Rf3+ {[%clk 0:00:21]} 72. Kg6 {[%clk 0:00:24]}  Bf6 {[%clk 0:00:21]} 73. Re1 {[%clk 0:00:22]}  Rf4 {[%clk 0:00:21]} 74. Rg1 {[%clk 0:00:21]}  Ke4 {[%clk 0:00:21]} 75. Re1+ {[%clk 0:00:22]}  Kf3 {[%clk 0:00:22]} 76. g5 {[%clk 0:00:20]}  hxg5 {[%clk 0:00:21]} 77. Rf1+ {[%clk 0:00:20]}  Kg4 {[%clk 0:00:21]} 78. Rg1+ {[%clk 0:00:20]}  Kf3 {[%clk 0:00:21]} 79. Rf1+ {[%clk 0:00:21]}  Ke4 {[%clk 0:00:21]} 80. Re1+ {[%clk 0:00:21]}  Kd5 {[%clk 0:00:22]} 81. Rd1+ {[%clk 0:00:21]}  Ke6 {[%clk 0:00:23]} 82. Re1+ {[%clk 0:00:21]}  Kd5 {[%clk 0:00:23]} 83. Rd1+ {[%clk 0:00:21]}  Ke5 {[%clk 0:00:23]} 84. Re1+ {[%clk 0:00:22]}  Re4 {[%clk 0:00:24]} 85. Rf1 {[%clk 0:00:21]}  g4 {[%clk 0:00:18]} 86. Rg1 {[%clk 0:00:18]}  Rf4 {[%clk 0:00:15]} 87. Re1+ {[%clk 0:00:17]}  Kd4 {[%clk 0:00:15]} 88. Rd1+ {[%clk 0:00:17]}  Ke3 {[%clk 0:00:16]} 89. Re1+ {[%clk 0:00:18]}  Kf2 {[%clk 0:00:16]} 90. Rc1 {[%clk 0:00:18]}  g3 {[%clk 0:00:17]} 91. Rc2+ {[%clk 0:00:19]}  Kf3 {[%clk 0:00:18]} 92. Rc1 {[%clk 0:00:19]}  g2 {[%clk 0:00:18]} 93. Rd1 {[%clk 0:00:18]}  Kg3 {[%clk 0:00:18]} 94. Rd3+ {[%clk 0:00:19]}  Rf3 {[%clk 0:00:18]} 95. Rd1 {[%clk 0:00:18]}  Rf1 {[%clk 0:00:19]} 96. Rd3+ {[%clk 0:00:19]}  Kg4 {[%clk 0:00:20]} 97. h6 {[%clk 0:00:18]}  gxh6 {[%clk 0:00:18]} 98. Rd5 {[%clk 0:00:17]}  g1=Q {[%clk 0:00:18]} 99. Kh7 {[%clk 0:00:18]}  Bg5 {[%clk 0:00:13]} 100. Ra5 {[%clk 0:00:15]}  Qb6 {[%clk 0:00:11]} 101. Ra4+ {[%clk 0:00:15]}  Kh5 {[%clk 0:00:11]} 102. Kg8 {[%clk 0:00:15]}  Qd8+ {[%clk 0:00:09]} 103. Kh7 {[%clk 0:00:15]}  Rf7# {[%clk 0:00:09]} 0-1


[Site "https://www.chess.com"]

[Event "Titled Tuesday Blitz November 29 Early 2022"]
[White "Miszler, Levente"]
[Black "Visakh N R"]
[WhiteFideId "763276"]
[BlackFideId "25012223"]
[WhiteElo "2176"]
[BlackElo "2466"]
[Result "0-1"]
[Round "01"]
[TimeControl "180+1"]
[Date "2022.11.30"]
[WhiteClock "0:00:03"]
[BlackClock "0:01:13"]

1. Nf3 {[%clk 0:02:56]}  d5 {[%clk 0:02:48]} 2. c4 {[%clk 0:02:56]}  e6 {[%clk 0:02:39]} 3. g3 {[%clk 0:02:55]}  Nf6 {[%clk 0:02:39]} 4. Bg2 {[%clk 0:02:56]}  Be7 {[%clk 0:02:39]} 5. O-O {[%clk 0:02:56]}  O-O {[%clk 0:02:40]} 6. d4 {[%clk 0:02:57]}  dxc4 {[%clk 0:02:39]} 7. Qc2 {[%clk 0:02:57]}  Bd7 {[%clk 0:02:37]} 8. Qxc4 {[%clk 0:02:48]}  Bc6 {[%clk 0:02:37]} 9. Nc3 {[%clk 0:02:47]}  Nbd7 {[%clk 0:02:36]} 10. Rd1 {[%clk 0:02:45]}  Nb6 {[%clk 0:02:36]} 11. Qd3 {[%clk 0:02:44]}  Bd5 {[%clk 0:02:29]} 12. b3 {[%clk 0:02:38]}  Bxf3 {[%clk 0:02:27]} 13. Bxf3 {[%clk 0:02:36]}  c6 {[%clk 0:02:28]} 14. e4 {[%clk 0:02:26]}  Rc8 {[%clk 0:02:26]} 15. Be3 {[%clk 0:02:26]}  c5 {[%clk 0:02:24]} 16. Rac1 {[%clk 0:01:48]}  cxd4 {[%clk 0:02:22]} 17. Bxd4 {[%clk 0:01:47]}  Bc5 {[%clk 0:02:20]} 18. Bxc5 {[%clk 0:01:30]}  Qxd3 {[%clk 0:02:18]} 19. Rxd3 {[%clk 0:01:31]}  Rxc5 {[%clk 0:02:19]} 20. Rcd1 {[%clk 0:01:32]}  Nbd7 {[%clk 0:02:14]} 21. Na4 {[%clk 0:01:28]}  Rc7 {[%clk 0:02:13]} 22. Rd6 {[%clk 0:01:14]}  b5 {[%clk 0:02:10]} 23. Nb2 {[%clk 0:01:12]}  Rfc8 {[%clk 0:01:58]} 24. e5 {[%clk 0:00:52]}  Nxe5 {[%clk 0:01:51]} 25. Rd8+ {[%clk 0:00:51]}  Ne8 {[%clk 0:01:52]} 26. Bb7 {[%clk 0:00:40]}  Rxd8 {[%clk 0:01:51]} 27. Rxd8 {[%clk 0:00:41]}  Kf8 {[%clk 0:01:52]} 28. Ba6 {[%clk 0:00:42]}  Ke7 {[%clk 0:01:51]} 29. Rb8 {[%clk 0:00:41]}  Rc2 {[%clk 0:01:48]} 30. Bxb5 {[%clk 0:00:41]}  Nd6 {[%clk 0:01:46]} 31. Nc4 {[%clk 0:00:35]}  Nexc4 {[%clk 0:01:40]} 32. bxc4 {[%clk 0:00:25]}  Kf6 {[%clk 0:01:40]} 33. a4 {[%clk 0:00:21]}  Nxc4 {[%clk 0:01:36]} 34. Bxc4 {[%clk 0:00:20]}  Rxc4 {[%clk 0:01:35]} 35. a5 {[%clk 0:00:15]}  Rc5 {[%clk 0:01:35]} 36. a6 {[%clk 0:00:15]}  Rc6 {[%clk 0:01:35]} 37. Rb7 {[%clk 0:00:16]}  Rxa6 {[%clk 0:01:35]} 38. Kg2 {[%clk 0:00:16]}  g5 {[%clk 0:01:35]} 39. g4 {[%clk 0:00:16]}  Ra1 {[%clk 0:01:33]} 40. h3 {[%clk 0:00:16]}  a5 {[%clk 0:01:34]} 41. Ra7 {[%clk 0:00:16]}  a4 {[%clk 0:01:34]} 42. Kh2 {[%clk 0:00:17]}  a3 {[%clk 0:01:34]} 43. Kg2 {[%clk 0:00:17]}  Kg6 {[%clk 0:01:35]} 44. Kf3 {[%clk 0:00:16]}  f6 {[%clk 0:01:28]} 45. Kg2 {[%clk 0:00:15]}  f5 {[%clk 0:01:28]} 46. gxf5+ {[%clk 0:00:14]}  exf5 {[%clk 0:01:29]} 47. Ra6+ {[%clk 0:00:13]}  Kh5 {[%clk 0:01:29]} 48. Ra7 {[%clk 0:00:13]}  h6 {[%clk 0:01:29]} 49. Ra6 {[%clk 0:00:12]}  g4 {[%clk 0:01:27]} 50. hxg4+ {[%clk 0:00:08]}  fxg4 {[%clk 0:01:26]} 51. f3 {[%clk 0:00:07]}  gxf3+ {[%clk 0:01:20]} 52. Kxf3 {[%clk 0:00:08]}  Kg5 {[%clk 0:01:20]} 53. Kg2 {[%clk 0:00:07]}  Kf4 {[%clk 0:01:18]} 54. Rxh6 {[%clk 0:00:06]}  Rb1 {[%clk 0:01:18]} 55. Ra6 {[%clk 0:00:05]}  Rb2+ {[%clk 0:01:18]} 56. Kh3 {[%clk 0:00:06]}  a2 {[%clk 0:01:18]} 57. Ra3 {[%clk 0:00:05]}  Ke4 {[%clk 0:01:18]} 58. Kg3 {[%clk 0:00:06]}  Kd4 {[%clk 0:01:18]} 59. Kf3 {[%clk 0:00:06]}  Rb3+ {[%clk 0:01:14]} 60. Rxb3 {[%clk 0:00:05]}  a1=Q {[%clk 0:01:14]} 61. Rb7 {[%clk 0:00:03]}  Qh1+ {[%clk 0:01:13]} 0-1


[Site "https://www.chess.com"]

[Event "Titled Tuesday Blitz November 29 Early 2022"]
[White "Nasir, Zehn"]
[Black "Sadhwani, Raunak"]
[WhiteFideId "2613239"]
[BlackFideId "35093487"]
[WhiteElo "1993"]
[BlackElo "2656"]
[Result "0-1"]
[Round "01"]
[TimeControl "180+1"]
[Date "2022.11.30"]
[WhiteClock "0:00:27"]
[BlackClock "0:01:19"]

1. d4 {[%clk 0:03:00]}  e6 {[%clk 0:02:59]} 2. Bf4 {[%clk 0:02:57]}  Nf6 {[%clk 0:02:58]} 3. e3 {[%clk 0:02:57]}  b6 {[%clk 0:02:57]} 4. Nf3 {[%clk 0:02:57]}  Bb7 {[%clk 0:02:57]} 5. Bd3 {[%clk 0:02:57]}  Be7 {[%clk 0:02:55]} 6. Nbd2 {[%clk 0:02:58]}  c5 {[%clk 0:02:54]} 7. c3 {[%clk 0:02:57]}  O-O {[%clk 0:02:54]} 8. O-O {[%clk 0:02:57]}  d6 {[%clk 0:02:53]} 9. e4 {[%clk 0:02:53]}  Nc6 {[%clk 0:02:44]} 10. Qe2 {[%clk 0:02:48]}  cxd4 {[%clk 0:02:40]} 11. cxd4 {[%clk 0:02:47]}  Nb4 {[%clk 0:02:40]} 12. Bc4 {[%clk 0:02:31]}  d5 {[%clk 0:02:40]} 13. exd5 {[%clk 0:02:29]}  Nbxd5 {[%clk 0:02:41]} 14. Be5 {[%clk 0:02:27]}  Rc8 {[%clk 0:02:36]} 15. Rac1 {[%clk 0:02:27]}  Bd6 {[%clk 0:02:22]} 16. Rfe1 {[%clk 0:02:25]}  Nf4 {[%clk 0:02:20]} 17. Qe3 {[%clk 0:02:12]}  Ng6 {[%clk 0:02:15]} 18. h4 {[%clk 0:01:54]}  Ng4 {[%clk 0:02:11]} 19. Qe2 {[%clk 0:01:37]}  Bxe5 {[%clk 0:02:08]} 20. Nxe5 {[%clk 0:01:31]}  N4xe5 {[%clk 0:02:04]} 21. dxe5 {[%clk 0:01:29]}  Nf4 {[%clk 0:02:03]} 22. Qg4 {[%clk 0:01:23]}  Nxg2 {[%clk 0:01:42]} 23. Ne4 {[%clk 0:01:10]}  Nxe1 {[%clk 0:01:35]} 24. Nf6+ {[%clk 0:01:05]}  Kh8 {[%clk 0:01:24]} 25. Qh5 {[%clk 0:00:27]}  Nf3+ {[%clk 0:01:19]} 0-1


[Site "https://www.chess.com"]

[Event "Titled Tuesday Blitz November 29 Early 2022"]
[White "Nugumanov, Bakhtiyar"]
[Black "Aaditya Dhingra"]
[WhiteFideId "13701797"]
[BlackFideId "25678191"]
[WhiteElo "2287"]
[BlackElo "2054"]
[Result "0-1"]
[Round "01"]
[TimeControl "180+1"]
[Date "2022.11.30"]
[WhiteClock "0:00:01"]
[BlackClock "0:00:30"]

1. e4 {[%clk 0:02:59]}  g6 {[%clk 0:02:57]} 2. d4 {[%clk 0:02:57]}  Bg7 {[%clk 0:02:57]} 3. Nc3 {[%clk 0:02:58]}  d6 {[%clk 0:02:56]} 4. Nf3 {[%clk 0:02:54]}  Nf6 {[%clk 0:02:54]} 5. Be3 {[%clk 0:02:54]}  a6 {[%clk 0:02:48]} 6. Qd2 {[%clk 0:02:49]}  b5 {[%clk 0:02:44]} 7. Bd3 {[%clk 0:02:47]}  Bb7 {[%clk 0:02:41]} 8. a3 {[%clk 0:02:19]}  Nbd7 {[%clk 0:01:56]} 9. h4 {[%clk 0:01:28]}  c5 {[%clk 0:01:50]} 10. dxc5 {[%clk 0:01:16]}  dxc5 {[%clk 0:01:41]} 11. e5 {[%clk 0:00:57]}  Ng4 {[%clk 0:01:38]} 12. e6 {[%clk 0:00:51]}  Nde5 {[%clk 0:01:32]} 13. exf7+ {[%clk 0:00:50]}  Nxf7 {[%clk 0:01:29]} 14. h5 {[%clk 0:00:44]}  c4 {[%clk 0:01:21]} 15. hxg6 {[%clk 0:00:42]}  hxg6 {[%clk 0:01:17]} 16. Rxh8+ {[%clk 0:00:41]}  Nxh8 {[%clk 0:01:16]} 17. Be4 {[%clk 0:00:38]}  Bxe4 {[%clk 0:01:06]} 18. Nxe4 {[%clk 0:00:26]}  Bxb2 {[%clk 0:01:03]} 19. Ra2 {[%clk 0:00:08]}  Bg7 {[%clk 0:01:01]} 20. Qb4 {[%clk 0:00:06]}  Nxe3 {[%clk 0:00:54]} 21. fxe3 {[%clk 0:00:06]}  Qd5 {[%clk 0:00:54]} 22. Ned2 {[%clk 0:00:04]}  a5 {[%clk 0:00:49]} 23. Qb1 {[%clk 0:00:02]}  Rd8 {[%clk 0:00:43]} 24. e4 {[%clk 0:00:01]}  Qc5 {[%clk 0:00:41]} 25. a4 {[%clk 0:00:01]}  b4 {[%clk 0:00:38]} 26. Qd1 {[%clk 0:00:01]}  Bc3 {[%clk 0:00:36]} 27. Qe2 {[%clk 0:00:01]}  b3 {[%clk 0:00:30]} 28. Kf1 {[%clk 0:00:01]} 0-1


[Site "https://www.chess.com"]

[Event "Titled Tuesday Blitz November 29 Early 2022"]
[White "Orzech, Dominik"]
[Black "Tasev, Dejan"]
[WhiteFideId "1115065"]
[BlackFideId "936618"]
[WhiteElo "2272"]
[BlackElo "2256"]
[Result "0-1"]
[Round "01"]
[TimeControl "180+1"]
[Date "2022.11.30"]
[WhiteClock "0:00:07"]
[BlackClock "0:02:18"]

1. d4 {[%clk 0:00:23]}  Nf6 {[%clk 0:02:57]} 2. Nf3 {[%clk 0:00:24]}  g6 {[%clk 0:02:57]} 3. c4 {[%clk 0:00:22]}  Bg7 {[%clk 0:02:57]} 4. g3 {[%clk 0:00:23]}  O-O {[%clk 0:02:56]} 5. Bg2 {[%clk 0:00:24]}  b6 {[%clk 0:02:56]} 6. O-O {[%clk 0:00:24]}  Bb7 {[%clk 0:02:57]} 7. Nc3 {[%clk 0:00:25]}  e6 {[%clk 0:02:57]} 8. Qc2 {[%clk 0:00:24]}  d5 {[%clk 0:02:55]} 9. Ne5 {[%clk 0:00:24]}  c6 {[%clk 0:02:54]} 10. Bg5 {[%clk 0:00:22]}  h6 {[%clk 0:02:51]} 11. Bf4 {[%clk 0:00:21]}  Nbd7 {[%clk 0:02:50]} 12. Rfd1 {[%clk 0:00:21]}  Rc8 {[%clk 0:02:46]} 13. Rac1 {[%clk 0:00:19]}  Kh7 {[%clk 0:02:39]} 14. h3 {[%clk 0:00:17]}  Nxe5 {[%clk 0:02:36]} 15. dxe5 {[%clk 0:00:15]}  Nh5 {[%clk 0:02:33]} 16. e4 {[%clk 0:00:15]}  Nxf4 {[%clk 0:02:32]} 17. gxf4 {[%clk 0:00:15]}  d4 {[%clk 0:02:32]} 18. c5 {[%clk 0:00:15]}  g5 {[%clk 0:02:28]} 19. Ne2 {[%clk 0:00:14]}  gxf4 {[%clk 0:02:28]} 20. Rxd4 {[%clk 0:00:14]}  Qg5 {[%clk 0:02:26]} 21. Qd2 {[%clk 0:00:13]}  Bxe5 {[%clk 0:02:24]} 22. Rd7 {[%clk 0:00:14]}  Ba6 {[%clk 0:02:23]} 23. Nd4 {[%clk 0:00:11]}  Rg8 {[%clk 0:02:19]} 24. Rxf7+ {[%clk 0:00:07]}  Kh8 {[%clk 0:02:18]} 0-1


[Site "https://www.chess.com"]

[Event "Titled Tuesday Blitz November 29 Early 2022"]
[White "Ovchinnikov, Vsevolod"]
[Black "Abasov, Nijat"]
[WhiteFideId "24176842"]
[BlackFideId "13402960"]
[WhiteElo "2376"]
[BlackElo "2546"]
[Result "0-1"]
[Round "01"]
[TimeControl "180+1"]
[Date "2022.11.30"]
[WhiteClock "0:00:03"]
[BlackClock "0:00:14"]

1. Nf3 {[%clk 0:02:59]}  c5 {[%clk 0:02:55]} 2. c4 {[%clk 0:03:00]}  Nc6 {[%clk 0:02:54]} 3. g3 {[%clk 0:03:00]}  g6 {[%clk 0:02:54]} 4. Bg2 {[%clk 0:03:01]}  Bg7 {[%clk 0:02:55]} 5. O-O {[%clk 0:03:00]}  e6 {[%clk 0:02:54]} 6. Nc3 {[%clk 0:02:58]}  d6 {[%clk 0:02:54]} 7. a3 {[%clk 0:02:57]}  Nge7 {[%clk 0:02:54]} 8. Rb1 {[%clk 0:02:57]}  b6 {[%clk 0:02:48]} 9. d3 {[%clk 0:02:54]}  O-O {[%clk 0:02:47]} 10. Bd2 {[%clk 0:02:54]}  d5 {[%clk 0:02:46]} 11. cxd5 {[%clk 0:02:53]}  exd5 {[%clk 0:02:44]} 12. b4 {[%clk 0:02:53]}  c4 {[%clk 0:02:09]} 13. dxc4 {[%clk 0:02:08]}  dxc4 {[%clk 0:02:10]} 14. Qa4 {[%clk 0:02:08]}  Bb7 {[%clk 0:02:03]} 15. Rfd1 {[%clk 0:02:07]}  Qc8 {[%clk 0:02:03]} 16. Rbc1 {[%clk 0:02:04]}  Nf5 {[%clk 0:01:50]} 17. e3 {[%clk 0:01:36]}  Rd8 {[%clk 0:01:22]} 18. Be1 {[%clk 0:01:35]}  Qe6 {[%clk 0:01:16]} 19. Ng5 {[%clk 0:01:24]}  Qe8 {[%clk 0:01:15]} 20. Nd5 {[%clk 0:00:56]}  Ne5 {[%clk 0:01:09]} 21. Qxe8+ {[%clk 0:00:47]}  Rxe8 {[%clk 0:01:10]} 22. Nc7 {[%clk 0:00:44]}  Bxg2 {[%clk 0:01:10]} 23. Kxg2 {[%clk 0:00:43]}  Nd3 {[%clk 0:00:54]} 24. Rxc4 {[%clk 0:00:31]}  Nxe1+ {[%clk 0:00:54]} 25. Rxe1 {[%clk 0:00:31]}  Rac8 {[%clk 0:00:53]} 26. Rec1 {[%clk 0:00:24]}  Rxe3 {[%clk 0:00:50]} 27. Nd5 {[%clk 0:00:13]}  Rxc4 {[%clk 0:00:48]} 28. Rxc4 {[%clk 0:00:14]}  Rd3 {[%clk 0:00:32]} 29. Rc8+ {[%clk 0:00:12]}  Bf8 {[%clk 0:00:33]} 30. Nf4 {[%clk 0:00:06]}  Rxa3 {[%clk 0:00:30]} 31. Nxh7 {[%clk 0:00:04]}  Kxh7 {[%clk 0:00:30]} 32. Rxf8 {[%clk 0:00:05]}  Kg7 {[%clk 0:00:31]} 33. Ra8 {[%clk 0:00:06]}  a5 {[%clk 0:00:25]} 34. bxa5 {[%clk 0:00:06]}  bxa5 {[%clk 0:00:25]} 35. Nd5 {[%clk 0:00:06]}  Ra2 {[%clk 0:00:22]} 36. Nb6 {[%clk 0:00:04]}  Nd6 {[%clk 0:00:21]} 37. Ra6 {[%clk 0:00:03]}  Ne4 {[%clk 0:00:21]} 38. Kf3 {[%clk 0:00:04]}  Nxf2 {[%clk 0:00:21]} 39. Nc4 {[%clk 0:00:04]}  Nd3 {[%clk 0:00:21]} 40. Rxa5 {[%clk 0:00:03]}  Rxh2 {[%clk 0:00:20]} 41. Ra3 {[%clk 0:00:03]}  Nc5 {[%clk 0:00:20]} 42. Re3 {[%clk 0:00:03]}  Kf6 {[%clk 0:00:19]} 43. Nd6 {[%clk 0:00:03]}  Ne6 {[%clk 0:00:19]} 44. Ne4+ {[%clk 0:00:03]}  Kg7 {[%clk 0:00:20]} 45. Nd6 {[%clk 0:00:03]}  Rd2 {[%clk 0:00:18]} 46. Nc4 {[%clk 0:00:02]}  Rc2 {[%clk 0:00:18]} 47. Ne5 {[%clk 0:00:02]}  Nd4+ {[%clk 0:00:18]} 48. Ke4 {[%clk 0:00:02]}  Nf5 {[%clk 0:00:18]} 49. Rf3 {[%clk 0:00:03]}  Re2+ {[%clk 0:00:19]} 50. Kf4 {[%clk 0:00:03]}  Nd6 {[%clk 0:00:15]} 51. Re3 {[%clk 0:00:02]}  Ra2 {[%clk 0:00:14]} 52. Kf3 {[%clk 0:00:02]}  Nf5 {[%clk 0:00:14]} 53. Rd3 {[%clk 0:00:02]}  Ra4 {[%clk 0:00:13]} 54. Rd7 {[%clk 0:00:02]}  Ra3+ {[%clk 0:00:12]} 55. Kf4 {[%clk 0:00:03]}  Ra4+ {[%clk 0:00:13]} 56. Kf3 {[%clk 0:00:03]}  Nh6 {[%clk 0:00:13]} 57. g4 {[%clk 0:00:03]}  Kf6 {[%clk 0:00:14]} 58. g5+ {[%clk 0:00:02]}  Kxe5 {[%clk 0:00:14]} 59. gxh6 {[%clk 0:00:02]}  Ke6 {[%clk 0:00:14]} 60. h7 {[%clk 0:00:02]}  Rh4 {[%clk 0:00:15]} 61. Rd8 {[%clk 0:00:02]}  Rxh7 {[%clk 0:00:15]} 62. Kg4 {[%clk 0:00:03]}  Rh5 {[%clk 0:00:15]} 63. Rf8 {[%clk 0:00:03]}  Rf5 {[%clk 0:00:14]} 0-1


[Site "https://www.chess.com"]

[Event "Titled Tuesday Blitz November 29 Early 2022"]
[White "Papasimakopoulos, Alexandros"]
[Black "Levitan, Caleb Levi"]
[WhiteFideId "4244125"]
[BlackFideId "14332620"]
[WhiteElo "2365"]
[BlackElo "1963"]
[Result "1-0"]
[Round "01"]
[TimeControl "180+1"]
[Date "2022.11.30"]
[WhiteClock "0:00:33"]
[BlackClock "0:00:03"]

1. d4 {[%clk 0:02:59]}  Nf6 {[%clk 0:02:59]} 2. c4 {[%clk 0:02:59]}  e6 {[%clk 0:02:59]} 3. Nc3 {[%clk 0:02:59]}  Bb4 {[%clk 0:02:59]} 4. Qc2 {[%clk 0:03:00]}  d5 {[%clk 0:02:59]} 5. cxd5 {[%clk 0:02:59]}  Qxd5 {[%clk 0:02:59]} 6. Nf3 {[%clk 0:02:59]}  O-O {[%clk 0:02:52]} 7. a3 {[%clk 0:02:51]}  Bxc3+ {[%clk 0:02:51]} 8. bxc3 {[%clk 0:02:52]}  c5 {[%clk 0:02:50]} 9. e3 {[%clk 0:02:41]}  Nc6 {[%clk 0:02:48]} 10. Bd3 {[%clk 0:02:35]}  e5 {[%clk 0:02:32]} 11. c4 {[%clk 0:02:13]}  Qd6 {[%clk 0:02:30]} 12. d5 {[%clk 0:02:13]}  Ne7 {[%clk 0:02:28]} 13. Bb2 {[%clk 0:02:09]}  e4 {[%clk 0:01:03]} 14. Bxe4 {[%clk 0:01:54]}  Nxe4 {[%clk 0:01:02]} 15. Qxe4 {[%clk 0:01:55]}  Bf5 {[%clk 0:00:43]} 16. Qe5 {[%clk 0:01:49]}  Qxe5 {[%clk 0:00:42]} 17. Bxe5 {[%clk 0:01:45]}  Ng6 {[%clk 0:00:24]} 18. Bg3 {[%clk 0:01:41]}  Bd3 {[%clk 0:00:21]} 19. Rc1 {[%clk 0:01:36]}  Rfd8 {[%clk 0:00:20]} 20. Kd2 {[%clk 0:01:28]}  Be4 {[%clk 0:00:19]} 21. Ke2 {[%clk 0:01:28]}  Rac8 {[%clk 0:00:14]} 22. h4 {[%clk 0:01:21]}  b5 {[%clk 0:00:12]} 23. Nd2 {[%clk 0:01:17]}  Bxg2 {[%clk 0:00:11]} 24. Rh2 {[%clk 0:01:17]}  Bxd5 {[%clk 0:00:06]} 25. cxd5 {[%clk 0:01:17]}  Rxd5 {[%clk 0:00:07]} 26. Rc2 {[%clk 0:01:09]}  c4 {[%clk 0:00:06]} 27. Rh1 {[%clk 0:01:01]}  f5 {[%clk 0:00:06]} 28. h5 {[%clk 0:00:51]}  Ne7 {[%clk 0:00:04]} 29. Nb1 {[%clk 0:00:50]}  Rd3 {[%clk 0:00:02]} 30. Nc3 {[%clk 0:00:50]}  Nc6 {[%clk 0:00:02]} 31. Nxb5 {[%clk 0:00:47]}  a6 {[%clk 0:00:03]} 32. Nd6 {[%clk 0:00:45]}  Rd8 {[%clk 0:00:01]} 33. Nxc4 {[%clk 0:00:40]}  Ne7 {[%clk 0:00:02]} 34. Rb1 {[%clk 0:00:34]}  Kf7 {[%clk 0:00:03]} 35. Ne5+ {[%clk 0:00:32]}  Ke6 {[%clk 0:00:03]} 36. Nxd3 {[%clk 0:00:33]} 1-0


[Site "https://www.chess.com"]